[Event "*** Titled Tuesday Blitz"]
[Site "Chess.com"]
[Date "2020.02.04"]
[Round "1"]
[White "ural58"]
[Black "Kobalia"]
[Result "1-0"]
[WhiteElo "2338"]
[BlackElo "2609"]
[TimeControl "180+2"]
[EndTime "13:10:33 PST"]
[Termination "ural58 won on time"]

1. e4 {[%clk 0:02:53.2]} 1... c6 {[%clk 0:02:59.7]} 2. b3 {[%clk 0:02:53.8]}
2... d5 {[%clk 0:03:00]} 3. Qe2 {[%clk 0:02:54.9]} 3... dxe4 {[%clk 0:02:50.5]}
4. Nc3 {[%clk 0:02:55.8]} 4... Nf6 {[%clk 0:02:48.6]} 5. Nxe4 {[%clk 0:02:56]}
5... Nxe4 {[%clk 0:02:46.9]} 6. Qxe4 {[%clk 0:02:56.9]} 6... Qd5 {[%clk
0:02:47.2]} 7. Qe3 {[%clk 0:02:57.1]} 7... Bf5 {[%clk 0:02:46.3]} 8. Bb2 {[%clk
0:02:57.2]} 8... Nd7 {[%clk 0:02:37.1]} 9. Nf3 {[%clk 0:02:55.4]} 9... e6 {[%clk
0:02:32.7]} 10. Bc4 {[%clk 0:02:55.5]} 10... Qe4 {[%clk 0:02:24.7]} 11. Bd3
{[%clk 0:02:54.9]} 11... Qxe3+ {[%clk 0:02:21.6]} 12. dxe3 {[%clk 0:02:55.9]}
12... Bxd3 {[%clk 0:02:18.7]} 13. cxd3 {[%clk 0:02:57]} 13... f6 {[%clk
0:02:18.6]} 14. Ke2 {[%clk 0:02:53.5]} 14... a5 {[%clk 0:02:17.3]} 15. a3 {[%clk
0:02:53.7]} 15... Bd6 {[%clk 0:02:16.8]} 16. g4 {[%clk 0:02:53.5]} 16... h5
{[%clk 0:02:14]} 17. h3 {[%clk 0:02:49.5]} 17... Kf7 {[%clk 0:02:14.4]} 18. g5
{[%clk 0:02:47.2]} 18... Ra6 {[%clk 0:02:09.1]} 19. Bc3 {[%clk 0:02:44.4]} 19...
Nb6 {[%clk 0:02:05.7]} 20. a4 {[%clk 0:02:44.8]} 20... Nd5 {[%clk 0:02:04.6]}
21. Bd2 {[%clk 0:02:45.8]} 21... Bb4 {[%clk 0:01:55.3]} 22. gxf6 {[%clk
0:02:46.3]} 22... gxf6 {[%clk 0:01:54]} 23. Rhg1 {[%clk 0:02:46.5]} 23... Raa8
{[%clk 0:01:51.2]} 24. Bxb4 {[%clk 0:02:38.1]} 24... axb4 {[%clk 0:01:51.2]} 25.
Kd2 {[%clk 0:02:30.4]} 25... Rhg8 {[%clk 0:01:50.1]} 26. Nd4 {[%clk 0:02:28.5]}
26... e5 {[%clk 0:01:29.1]} 27. Nf5 {[%clk 0:02:28]} 27... Ke6 {[%clk
0:01:29.7]} 28. Ng7+ {[%clk 0:02:17.3]} 28... Kf7 {[%clk 0:01:28.4]} 29. Nxh5
{[%clk 0:02:15.5]} 29... Rxg1 {[%clk 0:01:24.7]} 30. Rxg1 {[%clk 0:02:14.3]}
30... Rh8 {[%clk 0:01:24.6]} 31. Rg7+ {[%clk 0:01:30.8]} 31... Ke6 {[%clk
0:00:31]} 32. Ng3 {[%clk 0:01:29.8]} 32... b6 {[%clk 0:00:31.6]} 33. e4 {[%clk
0:01:09.3]} 33... Ne7 {[%clk 0:00:26.3]} 34. Nf5 {[%clk 0:01:08]} 34... Nxf5
{[%clk 0:00:24]} 35. exf5+ {[%clk 0:01:09.9]} 35... Kxf5 {[%clk 0:00:22.6]} 36.
Rb7 {[%clk 0:01:08]} 36... b5 {[%clk 0:00:21.1]} 37. axb5 {[%clk 0:01:01.1]}
37... cxb5 {[%clk 0:00:21.8]} 38. Rxb5 {[%clk 0:01:03]} 38... Rh4 {[%clk
0:00:21.4]} 39. Ke2 {[%clk 0:01:02.1]} 39... Kg5 {[%clk 0:00:15.1]} 40. Rb8
{[%clk 0:00:59.4]} 40... Kf5 {[%clk 0:00:15.4]} 41. Rb6 {[%clk 0:00:52.6]} 41...
Kg5 {[%clk 0:00:15]} 42. f3 {[%clk 0:00:39.4]} 42... Kf5 {[%clk 0:00:14.8]} 43.
Ke3 {[%clk 0:00:39.3]} 43... Kg5 {[%clk 0:00:13]} 44. Rb7 {[%clk 0:00:37.4]}
44... Kf5 {[%clk 0:00:13.6]} 45. Rb8 {[%clk 0:00:39.3]} 45... Kg5 {[%clk
0:00:13.6]} 46. Rg8+ {[%clk 0:00:40.2]} 46... Kf5 {[%clk 0:00:14.4]} 47. Rg4
{[%clk 0:00:42.1]} 47... Rxh3 {[%clk 0:00:14.8]} 48. Rxb4 {[%clk 0:00:43]} 48...
Rh1 {[%clk 0:00:12.2]} 49. d4 {[%clk 0:00:43.4]} 49... Rd1 {[%clk 0:00:10.2]}
50. dxe5 {[%clk 0:00:43.6]} 50... fxe5 {[%clk 0:00:10.5]} 51. Rb8 {[%clk
0:00:44.4]} 51... Re1+ {[%clk 0:00:11.3]} 52. Kf2 {[%clk 0:00:45.2]} 52... Rb1
{[%clk 0:00:11.9]} 53. b4 {[%clk 0:00:46.2]} 53... Rb3 {[%clk 0:00:10.6]} 54. b5
{[%clk 0:00:46.9]} 54... e4 {[%clk 0:00:09.3]} 55. b6 {[%clk 0:00:38.6]} 55...
e3+ {[%clk 0:00:02.8]} 56. Ke2 {[%clk 0:00:39.2]} 56... Ke6 {[%clk 0:00:02.5]}
57. b7 {[%clk 0:00:39.9]} 57... Kd7 {[%clk 0:00:03.6]} 58. Rh8 {[%clk
0:00:39.9]} 58... Rxb7 {[%clk 0:00:04.3]} 59. Rh7+ {[%clk 0:00:41]} 59... Kc6
{[%clk 0:00:04.8]} 60. Rxb7 {[%clk 0:00:41.8]} 60... Kxb7 {[%clk 0:00:05.8]} 61.
Kxe3 {[%clk 0:00:43]} 61... Kc6 {[%clk 0:00:06.1]} 62. Kf4 {[%clk 0:00:43.9]}
62... Kd6 {[%clk 0:00:04.7]} 63. Kf5 {[%clk 0:00:44.7]} 63... Ke7 {[%clk
0:00:05.2]} 64. Kg6 {[%clk 0:00:45.7]} 64... Ke6 {[%clk 0:00:04.9]} 65. f4
{[%clk 0:00:46.7]} 65... Ke7 {[%clk 0:00:05.5]} 66. f5 {[%clk 0:00:47.8]} 1-0

[Event "*** Titled Tuesday Blitz"]
[Site "Chess.com"]
[Date "2020.02.04"]
[Round "1"]
[White "Everyfishknows"]
[Black "Justmig"]
[Result "0-1"]
[WhiteElo "2328"]
[BlackElo "2656"]
[TimeControl "180+2"]
[EndTime "13:10:39 PST"]
[Termination "Justmig won by resignation"]

1. Nf3 {[%clk 0:02:57.3]} 1... d5 {[%clk 0:03:00.2]} 2. c4 {[%clk 0:02:57.6]}
2... d4 {[%clk 0:02:59.3]} 3. b4 {[%clk 0:02:52.2]} 3... Bg4 {[%clk 0:03:00.1]}
4. Bb2 {[%clk 0:02:49.3]} 4... Bxf3 {[%clk 0:03:00.1]} 5. exf3 {[%clk
0:02:49.2]} 5... Nf6 {[%clk 0:03:00.3]} 6. d3 {[%clk 0:02:45.8]} 6... e5 {[%clk
0:03:01.2]} 7. g3 {[%clk 0:02:47]} 7... Bxb4+ {[%clk 0:03:01.2]} 8. Nd2 {[%clk
0:02:48.4]} 8... O-O {[%clk 0:03:02.1]} 9. Bg2 {[%clk 0:02:49.2]} 9... c6 {[%clk
0:02:59.9]} 10. O-O {[%clk 0:02:50.4]} 10... Nbd7 {[%clk 0:03:00.6]} 11. Rb1
{[%clk 0:02:50.4]} 11... Qa5 {[%clk 0:02:53.8]} 12. Nb3 {[%clk 0:02:50.7]} 12...
Qxa2 {[%clk 0:02:52.2]} 13. f4 {[%clk 0:02:28.3]} 13... exf4 {[%clk 0:02:51.2]}
14. Bxd4 {[%clk 0:02:21.1]} 14... Rfe8 {[%clk 0:02:02.9]} 15. Bf3 {[%clk
0:01:57.9]} 15... Ne5 {[%clk 0:02:02.9]} 16. Bxe5 {[%clk 0:01:50.4]} 16... Rxe5
{[%clk 0:02:04.8]} 17. d4 {[%clk 0:01:49]} 17... Ree8 {[%clk 0:02:00.6]} 18. Ra1
{[%clk 0:01:18.2]} 18... Qb2 {[%clk 0:01:53]} 19. Qd3 {[%clk 0:01:07.9]} 19...
fxg3 {[%clk 0:01:43.9]} 20. hxg3 {[%clk 0:01:08.7]} 20... Qc3 {[%clk 0:01:44.4]}
21. Qxc3 {[%clk 0:00:59.9]} 21... Bxc3 {[%clk 0:01:46.3]} 22. Rac1 {[%clk
0:00:58.1]} 22... Bb4 {[%clk 0:01:47.2]} 23. Rb1 {[%clk 0:00:54.9]} 23... a5
{[%clk 0:01:47.4]} 24. c5 {[%clk 0:00:54.8]} 24... Rad8 {[%clk 0:01:43.4]} 25.
Rfd1 {[%clk 0:00:55.4]} 25... g6 {[%clk 0:01:42.7]} 26. Nc1 {[%clk 0:00:55.5]}
26... Bxc5 {[%clk 0:01:40.9]} 27. Rxb7 {[%clk 0:00:54.5]} 27... Bxd4 {[%clk
0:01:38.7]} 28. Kg2 {[%clk 0:00:55]} 28... c5 {[%clk 0:01:38.7]} 29. Nb3 {[%clk
0:00:53.7]} 29... a4 {[%clk 0:01:36.6]} 30. Nxd4 {[%clk 0:00:54.6]} 30... cxd4
{[%clk 0:01:35.8]} 31. Rb4 {[%clk 0:00:56.3]} 31... a3 {[%clk 0:01:33.9]} 32.
Ra4 {[%clk 0:00:51.4]} 32... Rd6 {[%clk 0:01:27.1]} 33. Rdxd4 {[%clk 0:00:43.3]}
33... Rxd4 {[%clk 0:01:27.8]} 34. Rxd4 {[%clk 0:00:45.2]} 34... Rc8 {[%clk
0:01:29.1]} 35. Ra4 {[%clk 0:00:39.6]} 35... Rc3 {[%clk 0:01:28.7]} 36. Ra7
{[%clk 0:00:29.8]} 36... Kg7 {[%clk 0:01:27.7]} 37. Ra6 {[%clk 0:00:22.8]} 37...
h5 {[%clk 0:01:28.3]} 38. Ra7 {[%clk 0:00:22.5]} 38... g5 {[%clk 0:01:24.9]} 39.
Ra5 {[%clk 0:00:21.5]} 39... Kg6 {[%clk 0:01:24.8]} 40. Be2 {[%clk 0:00:15.5]}
40... h4 {[%clk 0:01:00.3]} 41. gxh4 {[%clk 0:00:14.9]} 41... gxh4 {[%clk
0:01:02.2]} 42. Ra6 {[%clk 0:00:11.9]} 42... Kg7 {[%clk 0:01:00.9]} 43. Ra4
{[%clk 0:00:04.4]} 43... h3+ {[%clk 0:00:44.9]} 44. Kh2 {[%clk 0:00:05.4]} 44...
Nd5 {[%clk 0:00:45]} 45. Rg4+ {[%clk 0:00:04.7]} 45... Kf6 {[%clk 0:00:45.7]}
46. Ra4 {[%clk 0:00:05]} 46... Ke5 {[%clk 0:00:28.5]} 47. Bg4 {[%clk 0:00:05.5]}
47... Nf4 {[%clk 0:00:26.9]} 48. Ra5+ {[%clk 0:00:05.6]} 48... Kd6 {[%clk
0:00:27.9]} 49. Ra4 {[%clk 0:00:06.4]} 49... Nd3 {[%clk 0:00:19.5]} 50. f3
{[%clk 0:00:03.3]} 50... Nb2 {[%clk 0:00:15]} 51. Ra6+ {[%clk 0:00:03.7]} 51...
Kc5 {[%clk 0:00:16.1]} 52. Kxh3 {[%clk 0:00:05]} 52... Nc4 {[%clk 0:00:16.3]}
53. Bf5 {[%clk 0:00:03.9]} 53... Kb5 {[%clk 0:00:16.6]} 54. Ra8 {[%clk
0:00:04.6]} 54... Rxf3+ {[%clk 0:00:14.8]} 55. Kg4 {[%clk 0:00:06.1]} 55... Rc3
{[%clk 0:00:08.8]} 56. Bd7+ {[%clk 0:00:06.9]} 56... Kc5 {[%clk 0:00:08.9]} 57.
Rc8+ {[%clk 0:00:07.5]} 57... Kd4 {[%clk 0:00:09.9]} 58. Ra8 {[%clk 0:00:08.1]}
58... Rc2 {[%clk 0:00:10.7]} 59. Bb5 {[%clk 0:00:08.7]} 59... a2 {[%clk
0:00:11.2]} 60. Bxc4 {[%clk 0:00:09.3]} 60... Kxc4 {[%clk 0:00:12.4]} 61. Kf5
{[%clk 0:00:10.7]} 61... Rb2 {[%clk 0:00:13.3]} 62. Ke4 {[%clk 0:00:09.1]} 62...
Kc3 {[%clk 0:00:13]} 63. Ke3 {[%clk 0:00:10.2]} 63... Kc2 {[%clk 0:00:14.1]} 64.
Ke2 {[%clk 0:00:10.9]} 64... Kb1+ {[%clk 0:00:15.3]} 65. Kd1 {[%clk 0:00:12.4]}
65... Rb7 {[%clk 0:00:16.7]} 0-1

[Event "*** Titled Tuesday Blitz"]
[Site "Chess.com"]
[Date "2020.02.04"]
[Round "1"]
[White "Teidi96"]
[Black "Snegokhod"]
[Result "0-1"]
[WhiteElo "2300"]
[BlackElo "2636"]
[TimeControl "180+2"]
[EndTime "13:10:44 PST"]
[Termination "Snegokhod won on time"]

1. e4 {[%clk 0:03:01.9]} 1... c5 {[%clk 0:02:58.8]} 2. Nf3 {[%clk 0:03:02.6]}
2... e6 {[%clk 0:02:58.7]} 3. c3 {[%clk 0:03:03.2]} 3... d5 {[%clk 0:02:56.3]}
4. e5 {[%clk 0:03:01.1]} 4... Nc6 {[%clk 0:02:54.6]} 5. d4 {[%clk 0:03:01.9]}
5... Qb6 {[%clk 0:02:55.2]} 6. Be2 {[%clk 0:02:54.8]} 6... Bd7 {[%clk
0:02:53.4]} 7. O-O {[%clk 0:02:55.5]} 7... cxd4 {[%clk 0:02:51.1]} 8. cxd4
{[%clk 0:02:55.6]} 8... Nge7 {[%clk 0:02:51.4]} 9. Nc3 {[%clk 0:02:45.1]} 9...
Nf5 {[%clk 0:02:51.7]} 10. Na4 {[%clk 0:02:17]} 10... Qa5 {[%clk 0:02:41.2]} 11.
Bd2 {[%clk 0:02:11]} 11... Qd8 {[%clk 0:02:38.8]} 12. Be3 {[%clk 0:01:52.8]}
12... Be7 {[%clk 0:02:33.3]} 13. Rc1 {[%clk 0:01:48.8]} 13... g5 {[%clk
0:02:23.9]} 14. Nc5 {[%clk 0:01:35.3]} 14... g4 {[%clk 0:02:24.3]} 15. Ne1
{[%clk 0:01:33.3]} 15... h5 {[%clk 0:02:06.8]} 16. Nxb7 {[%clk 0:01:29.2]} 16...
Qb6 {[%clk 0:02:06.9]} 17. Nc5 {[%clk 0:01:29.1]} 17... Nxe3 {[%clk 0:01:52.3]}
18. fxe3 {[%clk 0:01:26.1]} 18... Nxe5 {[%clk 0:01:50]} 19. Nxd7 {[%clk
0:00:45]} 19... Nxd7 {[%clk 0:01:50.1]} 20. Qa4 {[%clk 0:00:42.2]} 20... Qb4
{[%clk 0:01:35.6]} 21. Bb5 {[%clk 0:00:35.6]} 21... Qxa4 {[%clk 0:01:36.6]} 22.
Bxa4 {[%clk 0:00:37.5]} 22... f5 {[%clk 0:01:30.6]} 23. Rc7 {[%clk 0:00:37.1]}
23... Rd8 {[%clk 0:01:31.6]} 24. Nd3 {[%clk 0:00:38.3]} 24... Bd6 {[%clk
0:01:32.5]} 25. Rxa7 {[%clk 0:00:37.1]} 25... Rh7 {[%clk 0:01:30.3]} 26. Rc1
{[%clk 0:00:34.4]} 26... Kf8 {[%clk 0:01:27]} 27. Ne5 {[%clk 0:00:23.2]} 27...
Nf6 {[%clk 0:00:50.4]} 28. Rxh7 {[%clk 0:00:14.7]} 28... Nxh7 {[%clk 0:00:51]}
29. Rc6 {[%clk 0:00:14.2]} 29... Nf6 {[%clk 0:00:43.5]} 30. Ng6+ {[%clk
0:00:06.8]} 30... Kg7 {[%clk 0:00:41.3]} 31. Nf4 {[%clk 0:00:07.3]} 31... Kf7
{[%clk 0:00:24.4]} 32. Kf2 {[%clk 0:00:07.5]} 32... Rb8 {[%clk 0:00:21.4]} 33.
Bb3 {[%clk 0:00:07.4]} 33... Ne4+ {[%clk 0:00:17.7]} 34. Ke2 {[%clk 0:00:08]}
34... Bxf4 {[%clk 0:00:18.7]} 35. exf4 {[%clk 0:00:08.8]} 35... Rb4 {[%clk
0:00:20.3]} 36. Ke3 {[%clk 0:00:08.2]} 36... h4 {[%clk 0:00:21.7]} 37. Rc8
{[%clk 0:00:07.7]} 37... h3 {[%clk 0:00:21.6]} 38. gxh3 {[%clk 0:00:07.8]} 38...
gxh3 {[%clk 0:00:22.5]} 39. Rh8 {[%clk 0:00:09.4]} 39... Nf6 {[%clk 0:00:23.4]}
40. Rxh3 {[%clk 0:00:10.1]} 40... Ng4+ {[%clk 0:00:24.6]} 41. Kf3 {[%clk
0:00:06.8]} 41... Rxd4 {[%clk 0:00:24.9]} 42. Rh7+ {[%clk 0:00:07.6]} 42... Kg6
{[%clk 0:00:24.1]} 43. Re7 {[%clk 0:00:08.8]} 43... Kf6 {[%clk 0:00:25]} 44. Rc7
{[%clk 0:00:07.6]} 44... Nxh2+ {[%clk 0:00:25.8]} 45. Kg2 {[%clk 0:00:07.9]}
45... Rd2+ {[%clk 0:00:25]} 46. Kg3 {[%clk 0:00:08.1]} 46... Rxb2 {[%clk
0:00:25.9]} 47. Rc2 {[%clk 0:00:08.3]} 47... Nf1+ {[%clk 0:00:24.3]} 48. Kf2
{[%clk 0:00:08.3]} 48... Rxc2+ {[%clk 0:00:24.6]} 49. Bxc2 {[%clk 0:00:09.3]}
49... Nd2 {[%clk 0:00:26.1]} 50. a4 {[%clk 0:00:09.5]} 50... Nc4 {[%clk
0:00:27.3]} 51. Bd3 {[%clk 0:00:09.6]} 51... Na5 {[%clk 0:00:27.9]} 52. Ke3
{[%clk 0:00:10.9]} 52... Ke7 {[%clk 0:00:29.5]} 53. Kd4 {[%clk 0:00:12.5]} 53...
Kd6 {[%clk 0:00:31]} 54. Bb5 {[%clk 0:00:13.3]} 54... Nb3+ {[%clk 0:00:29.9]}
55. Kc3 {[%clk 0:00:13.8]} 55... Nc5 {[%clk 0:00:27.9]} 56. Kd4 {[%clk
0:00:14.8]} 56... Nb7 {[%clk 0:00:27.8]} 57. Be8 {[%clk 0:00:14.3]} 57... Na5
{[%clk 0:00:26.8]} 58. Bb5 {[%clk 0:00:15.4]} 58... Nc6+ {[%clk 0:00:27]} 59.
Kd3 {[%clk 0:00:06]} 59... Kc5 {[%clk 0:00:27.6]} 60. Kc3 {[%clk 0:00:05.9]}
60... Nd4 {[%clk 0:00:21.8]} 61. Bd7 {[%clk 0:00:04.4]} 61... Ne2+ {[%clk
0:00:22.7]} 62. Kd3 {[%clk 0:00:04.5]} 62... Nxf4+ {[%clk 0:00:24.2]} 63. Ke3
{[%clk 0:00:05.9]} 63... Kd6 {[%clk 0:00:18.6]} 0-1

[Event "*** Titled Tuesday Blitz"]
[Site "Chess.com"]
[Date "2020.02.04"]
[Round "1"]
[White "Perecke"]
[Black "FedaMaster"]
[Result "1-0"]
[WhiteElo "2278"]
[BlackElo "2597"]
[TimeControl "180+2"]
[EndTime "13:10:52 PST"]
[Termination "Perecke won by resignation"]

1. e4 {[%clk 0:03:01.8]} 1... c5 {[%clk 0:03:00.7]} 2. Nf3 {[%clk 0:03:02.7]}
2... d6 {[%clk 0:03:01.9]} 3. d4 {[%clk 0:03:03.5]} 3... cxd4 {[%clk 0:03:03.8]}
4. Nxd4 {[%clk 0:03:05.2]} 4... Nf6 {[%clk 0:03:05.4]} 5. Nc3 {[%clk 0:02:58.4]}
5... g6 {[%clk 0:03:04.6]} 6. Be3 {[%clk 0:02:15]} 6... Bg7 {[%clk 0:03:05.7]}
7. f3 {[%clk 0:02:14.7]} 7... O-O {[%clk 0:03:07.3]} 8. Qd2 {[%clk 0:02:14.5]}
8... Nc6 {[%clk 0:03:08.9]} 9. g4 {[%clk 0:02:12.3]} 9... Bxg4 {[%clk
0:03:09.3]} 10. fxg4 {[%clk 0:02:06.7]} 10... Nxg4 {[%clk 0:03:11.2]} 11. Nxc6
{[%clk 0:02:07.9]} 11... bxc6 {[%clk 0:03:11.3]} 12. Bd4 {[%clk 0:02:09]} 12...
e5 {[%clk 0:03:06.7]} 13. Bg1 {[%clk 0:02:06.5]} 13... Rb8 {[%clk 0:03:02.9]}
14. Nd1 {[%clk 0:02:06.4]} 14... f5 {[%clk 0:02:58.7]} 15. exf5 {[%clk
0:01:29.5]} 15... Rxf5 {[%clk 0:02:57]} 16. Qg2 {[%clk 0:01:13.5]} 16... Qa5+
{[%clk 0:02:10.1]} 17. c3 {[%clk 0:01:04.5]} 17... Qa4 {[%clk 0:02:10.7]} 18.
Bd3 {[%clk 0:00:36.3]} 18... Rf4 {[%clk 0:02:00.2]} 19. Be3 {[%clk 0:00:27.4]}
19... Nxe3 {[%clk 0:02:00.3]} 20. Nxe3 {[%clk 0:00:29.3]} 20... Rbf8 {[%clk
0:01:58.5]} 21. Rf1 {[%clk 0:00:22.7]} 21... d5 {[%clk 0:01:50.2]} 22. Rxf4
{[%clk 0:00:20.7]} 22... exf4 {[%clk 0:01:52.1]} 23. Nc2 {[%clk 0:00:19.2]}
23... f3 {[%clk 0:01:51.7]} 24. Qf2 {[%clk 0:00:18.9]} 24... Re8+ {[%clk
0:01:50.8]} 25. Kf1 {[%clk 0:00:19.1]} 25... Qf4 {[%clk 0:01:52.7]} 26. Re1
{[%clk 0:00:15.9]} 26... Rf8 {[%clk 0:01:52.8]} 27. Nd4 {[%clk 0:00:14.5]} 27...
Qg4 {[%clk 0:01:43.8]} 28. Re3 {[%clk 0:00:05.5]} 28... Bxd4 {[%clk 0:01:39.6]}
29. cxd4 {[%clk 0:00:07.4]} 29... Rf4 {[%clk 0:01:38.1]} 30. Bc2 {[%clk
0:00:03.2]} 30... Qh3+ {[%clk 0:01:27.8]} 31. Ke1 {[%clk 0:00:04.4]} 31... Kg7
{[%clk 0:01:21.7]} 32. Bd1 {[%clk 0:00:05.2]} 32... Qf5 {[%clk 0:01:18.4]} 33.
Rxf3 {[%clk 0:00:05.2]} 33... Qe4+ {[%clk 0:01:16.5]} 34. Kf1 {[%clk 0:00:05.9]}
34... Rxf3 {[%clk 0:01:05.9]} 35. Bxf3 {[%clk 0:00:07.8]} 35... Qb1+ {[%clk
0:01:07.6]} 36. Qe1 {[%clk 0:00:07.7]} 36... Qxa2 {[%clk 0:01:09.5]} 37. Qe7+
{[%clk 0:00:08.5]} 37... Kh6 {[%clk 0:01:11.4]} 38. Qh4+ {[%clk 0:00:08.6]}
38... Kg7 {[%clk 0:01:12.9]} 39. Qe7+ {[%clk 0:00:09.1]} 39... Kh6 {[%clk
0:01:14.5]} 40. Qe3+ {[%clk 0:00:07.2]} 40... Kg7 {[%clk 0:01:15.7]} 41. Qc3
{[%clk 0:00:08]} 41... Qb1+ {[%clk 0:01:15.9]} 42. Kf2 {[%clk 0:00:07]} 42... h5
{[%clk 0:01:13.4]} 43. Qxc6 {[%clk 0:00:06]} 43... Qxb2+ {[%clk 0:01:14.7]} 44.
Ke3 {[%clk 0:00:07.3]} 44... Qa3+ {[%clk 0:01:06.2]} 45. Kf4 {[%clk 0:00:05.3]}
45... Qf8+ {[%clk 0:01:07.7]} 46. Kg3 {[%clk 0:00:05.5]} 46... h4+ {[%clk
0:01:06.7]} 47. Kf2 {[%clk 0:00:05.6]} 47... Qf4 {[%clk 0:01:06.9]} 48. Qxd5
{[%clk 0:00:06.3]} 48... Qxh2+ {[%clk 0:01:08.3]} 49. Ke3 {[%clk 0:00:07.7]}
49... h3 {[%clk 0:01:07.9]} 50. Qd7+ {[%clk 0:00:08.2]} 50... Kh6 {[%clk
0:01:08.6]} 51. Qd8 {[%clk 0:00:04.2]} 51... Qg1+ {[%clk 0:01:07.6]} 52. Kf4
{[%clk 0:00:04]} 52... Qh2+ {[%clk 0:00:56.1]} 53. Kg4 {[%clk 0:00:02.8]} 53...
Qg1+ {[%clk 0:00:53.9]} 54. Kxh3 {[%clk 0:00:03.1]} 54... Qf1+ {[%clk
0:00:55.4]} 55. Kg3 {[%clk 0:00:02.8]} 55... Qg1+ {[%clk 0:00:54.2]} 56. Kf4
{[%clk 0:00:03.8]} 56... Qc1+ {[%clk 0:00:55.6]} 57. Ke4 {[%clk 0:00:04.3]}
57... Qc2+ {[%clk 0:00:56.3]} 58. Kd5 {[%clk 0:00:04.8]} 58... Qb3+ {[%clk
0:00:56.5]} 59. Ke4 {[%clk 0:00:05]} 59... Qe6+ {[%clk 0:00:56.5]} 60. Kf4
{[%clk 0:00:05.2]} 60... Kg7 {[%clk 0:00:42.1]} 61. Be4 {[%clk 0:00:05.4]} 61...
g5+ {[%clk 0:00:34.2]} 62. Ke3 {[%clk 0:00:04.2]} 62... Qh3+ {[%clk 0:00:34.8]}
63. Bf3 {[%clk 0:00:05.2]} 63... Qh4 {[%clk 0:00:33.1]} 64. Qe7+ {[%clk
0:00:04.9]} 64... Kg8 {[%clk 0:00:28.2]} 65. Bd5+ {[%clk 0:00:05.2]} 65... Kh8
{[%clk 0:00:29.8]} 66. Qf8+ {[%clk 0:00:06.2]} 66... Kh7 {[%clk 0:00:31.7]} 67.
Be4+ {[%clk 0:00:07.5]} 67... Qxe4+ {[%clk 0:00:30.7]} 68. Kxe4 {[%clk
0:00:09.4]} 68... g4 {[%clk 0:00:31.9]} 69. Qf5+ {[%clk 0:00:09.1]} 1-0

[Event "*** Titled Tuesday Blitz"]
[Site "Chess.com"]
[Date "2020.02.04"]
[Round "1"]
[White "heyiampotato"]
[Black "David_Paravyan"]
[Result "0-1"]
[WhiteElo "2463"]
[BlackElo "2857"]
[TimeControl "180+2"]
[EndTime "13:11:03 PST"]
[Termination "David_Paravyan won by resignation"]

1. d4 {[%clk 0:03:01.1]} 1... Nf6 {[%clk 0:01:56]} 2. c4 {[%clk 0:03:01]} 2...
e6 {[%clk 0:01:53.1]} 3. Nf3 {[%clk 0:03:01.5]} 3... b6 {[%clk 0:01:53.2]} 4. a3
{[%clk 0:03:02.2]} 4... Bb7 {[%clk 0:01:53.4]} 5. Nc3 {[%clk 0:03:03.4]} 5... g6
{[%clk 0:01:54.8]} 6. Qd3 {[%clk 0:02:58.7]} 6... d5 {[%clk 0:01:54.8]} 7. Bg5
{[%clk 0:02:52.2]} 7... dxc4 {[%clk 0:01:53.9]} 8. Qxc4 {[%clk 0:02:53.1]} 8...
Bg7 {[%clk 0:01:55]} 9. Qa4+ {[%clk 0:02:41.3]} 9... Nbd7 {[%clk 0:01:53.3]} 10.
e3 {[%clk 0:02:38.2]} 10... a6 {[%clk 0:01:49.3]} 11. Be2 {[%clk 0:02:37.8]}
11... O-O {[%clk 0:01:49.8]} 12. O-O {[%clk 0:02:38.6]} 12... h6 {[%clk
0:01:51.3]} 13. Bh4 {[%clk 0:02:38.3]} 13... b5 {[%clk 0:01:50.8]} 14. Qc2
{[%clk 0:02:37.8]} 14... Qe7 {[%clk 0:01:36.9]} 15. Rac1 {[%clk 0:02:08.9]}
15... Rfc8 {[%clk 0:01:32]} 16. b4 {[%clk 0:02:06.4]} 16... e5 {[%clk
0:01:30.6]} 17. Rfe1 {[%clk 0:01:54.8]} 17... c6 {[%clk 0:01:23.3]} 18. Ne4
{[%clk 0:01:39.8]} 18... g5 {[%clk 0:01:18.4]} 19. Bg3 {[%clk 0:01:39.4]} 19...
Nxe4 {[%clk 0:00:55.3]} 20. Qxe4 {[%clk 0:01:39.7]} 20... a5 {[%clk 0:00:44.2]}
21. dxe5 {[%clk 0:01:15.2]} 21... axb4 {[%clk 0:00:43.1]} 22. axb4 {[%clk
0:01:16.5]} 22... Nf8 {[%clk 0:00:38.9]} 23. Qg4 {[%clk 0:00:56.6]} 23... Ra4
{[%clk 0:00:33.9]} 24. h4 {[%clk 0:00:55.2]} 24... Rxb4 {[%clk 0:00:34.4]} 25.
Qh5 {[%clk 0:00:55.9]} 25... gxh4 {[%clk 0:00:10.1]} 26. Bxh4 {[%clk 0:00:56.9]}
26... Qe6 {[%clk 0:00:10.7]} 27. Nd4 {[%clk 0:00:44.8]} 27... Qxe5 {[%clk
0:00:11]} 28. Nf5 {[%clk 0:00:46.1]} 28... Rxh4 {[%clk 0:00:10.7]} 29. Nxh4
{[%clk 0:00:44.9]} 29... Qxh5 {[%clk 0:00:10.4]} 30. Bxh5 {[%clk 0:00:46.8]}
30... c5 {[%clk 0:00:11.9]} 31. Nf5 {[%clk 0:00:46.3]} 31... Rc7 {[%clk
0:00:11]} 32. Nd6 {[%clk 0:00:45.6]} 32... b4 {[%clk 0:00:09.2]} 33. Nxb7 {[%clk
0:00:43.7]} 33... Rxb7 {[%clk 0:00:10]} 34. Rxc5 {[%clk 0:00:45.3]} 34... b3
{[%clk 0:00:11.6]} 35. Be2 {[%clk 0:00:35.4]} 35... b2 {[%clk 0:00:12.7]} 36.
Rb5 {[%clk 0:00:33.7]} 36... Rc7 {[%clk 0:00:10.5]} 37. Bd3 {[%clk 0:00:19.1]}
37... Rc3 {[%clk 0:00:09.9]} 38. Bb1 {[%clk 0:00:09.4]} 38... Rc1 {[%clk
0:00:10.7]} 39. Rf1 {[%clk 0:00:09.2]} 39... Bf6 {[%clk 0:00:12]} 40. Rb7 {[%clk
0:00:09.7]} 40... Ne6 {[%clk 0:00:12.7]} 41. Rb6 {[%clk 0:00:09]} 41... Kg7
{[%clk 0:00:13.2]} 42. f3 {[%clk 0:00:09.2]} 42... Nc5 {[%clk 0:00:14.1]} 43.
Rb5 {[%clk 0:00:04.7]} 43... Na4 {[%clk 0:00:14.8]} 44. Rb7 {[%clk 0:00:04.8]}
44... Bc3 {[%clk 0:00:13]} 45. Rb3 {[%clk 0:00:04.6]} 45... Be5 {[%clk
0:00:10.9]} 46. Rb5 {[%clk 0:00:05.6]} 46... Bf6 {[%clk 0:00:11.8]} 47. Rb7
{[%clk 0:00:06.5]} 47... h5 {[%clk 0:00:13.3]} 48. Rb8 {[%clk 0:00:07.1]} 48...
h4 {[%clk 0:00:14.5]} 49. Rb4 {[%clk 0:00:08.6]} 49... Nc5 {[%clk 0:00:09.2]}
50. Rb5 {[%clk 0:00:08.7]} 50... Ne6 {[%clk 0:00:09.5]} 51. Rb6 {[%clk
0:00:08.3]} 51... Nc7 {[%clk 0:00:10.5]} 52. Rb3 {[%clk 0:00:08.9]} 52... Nd5
{[%clk 0:00:11.2]} 53. Rd3 {[%clk 0:00:08.5]} 53... Nc3 {[%clk 0:00:06.6]} 54.
Rxc3 {[%clk 0:00:03.8]} 54... Bxc3 {[%clk 0:00:06.9]} 55. Kf2 {[%clk 0:00:04.4]}
55... Bd2 {[%clk 0:00:06.1]} 56. e4 {[%clk 0:00:04.4]} 56... Kf6 {[%clk
0:00:06.3]} 57. Ke2 {[%clk 0:00:05.6]} 57... Bf4 {[%clk 0:00:04.7]} 58. Rd1
{[%clk 0:00:06.4]} 58... Kg5 {[%clk 0:00:03.2]} 59. Rf1 {[%clk 0:00:04]} 59...
f6 {[%clk 0:00:04.6]} 60. Rd1 {[%clk 0:00:05]} 60... Kh5 {[%clk 0:00:05.3]} 61.
Rf1 {[%clk 0:00:06.1]} 61... Kh6 {[%clk 0:00:06.8]} 62. Rd1 {[%clk 0:00:07.4]}
62... Kg5 {[%clk 0:00:08.5]} 63. Rf1 {[%clk 0:00:08.6]} 63... Be5 {[%clk
0:00:07.8]} 64. Rd1 {[%clk 0:00:08.5]} 64... Kf4 {[%clk 0:00:08.6]} 65. Rf1
{[%clk 0:00:06.4]} 65... Kg3 {[%clk 0:00:09.8]} 66. Rd1 {[%clk 0:00:03.9]} 66...
Rxd1 {[%clk 0:00:09.8]} 67. Kxd1 {[%clk 0:00:05]} 67... Kxg2 {[%clk 0:00:11.7]}
0-1